Workbook

Sheet Нормы СанПиН
A1: СанПиН 2.3/2.4 3590-20
A3: Приложение 10
A5: таблица 1
A7: Суточная потребность детей в пищевых веществах и энергии детей
A9: Название пищевых веществ | B9: Усреднённая потребность в пищевых веществах для детей с 7 до 12 лет
B10: Суточная норма | C10: 70-75% от суточной нормы при повышенных энерготратах
A11: Белки (г) | B11: 77 | C11: 53,9-57,75
A12: Жиры (г) | B12: 79 | C12: 55,3-59,25
A13: Углеводы (г) | B13: 335 | C13: 234,5-251,25
A14: Энергетическая ценность (ккал) | B14: 2350 | C14: 1645-1762,5
A16: таблица 3
A18: Рекомендуемое распределение калорийности между приёмами пищи в течении дня
A20: Приём пищи | B20: Доля суточной потребности в энергии, % | C20: Доля суточной потребности в ккал | D20: +-5%
A21: Завтрак | B21: 25% | C21: 587.5 | D21: 558,12-616,87
A22: Обед | B22: 35% | C22: 822.5 | D22: 781,37-863,62
A23: Дополнительное увеличение при летнем отдыхе и повышенных энерготратах не менее 10% | B23: 10-15% | C23: 235-352,5
A27: Приложение 12
A29: Организация с дневным пребыванием в период каникул | B29: 8.30-14.30 | C29: завтрак и обед
B30: 8.30-18.00 | C30: Завтрак, обед и полдник
A33: Приложение 9
A35: таблица 1
A37: Масса порций для детей с 7 до 12 лет
A39: Каша, или овощное, или яичное, или творожное, или мясное блюдо(допускается комбинация разных блюд завтрака, при этом выход каждого блюда может быть уменьшен при условии соблюдения общей массы блюд завтрака) | B39: 150-200
A40: Закуска (холодное блюдо) (салат, овощи и т.п) | B40: 60-100
A41: Первое блодо | B41: 200-250
A42: Второе блюдо (мясное, рыбное, блюдо из мяса птицы) | B42: 90-120
A43: Гарнир | B43: 150-200
A44: Третье блюдо (напиток) | B44: 180-200
A45: Фрукты | B45: 100
A47: таблица 3
A49: Суммарные объёмы блюд по приемам пищи ( в граммах не менее)
A51: Завтрак | B51: 500
A52: Второй завтрак | B52: 200
A53: Обед | B53: 700

Sheet Сличительное меню
A1: День1 | B1: День2 | C1: День 3 | D1: День 4 | E1: День 5 | F1: День 6 | G1: День 7
A2: Завтрак | B2: Завтрак | C2: Завтрак | D2: Завтрак | E2: Завтрак | F2: Завтрак | G2: Завтрак
A3: Каша ячневая молочная | B3: Каша геркулесовая молочная | C3: Каша гречневая молочная | D3: Каша Дружба молочная | E3: Каша манная молочная | F3: Каша рисовая молочная | G3: Каша пшенная молочная
A4: Яйцо отварное | B4: Запеканка из творога | C4: Омлет | D4: Яйцо отварное | E4: Сырники из творога | F4: Бутерброд с маслом и сыром | G4: Омлет
A5: Бутерброд с сыром | B5: Бутерброд с маслом | C5: Бутерброд с маслом и сыром | D5: Бутерброд с сыром | E5: Бутерброд с маслом | F5: Какао с молоком | G5: Бутерброд с сыром
A6: Какао с молоком | B6: Чай с сахаром | C6: Чай с урюком | D6: Чай с лимоном | E6: Чай с сахаром | F6: Фрукт | G6: Чай с урюком
A7: Фрукт | B7: Фрукт | C7: Фрукт | D7: Фрукт | E7: Фрукт | G7: Фрукт
A9: 2-ой завтрак | B9: 2-ой завтрак | C9: 2-ой завтрак | D9: 2-ой завтрак | E9: 2-ой завтрак | F9: 2-ой завтрак | G9: 2-ой завтрак
A10: Сок | B10: Сок | C10: Сок | D10: Сок | E10: Сок | F10: Сок | G10: Сок
A11: Оладьи | B11: Кондитерское изделие | C11: Кондитерское изделие | D11: Булочка домашняя | E11: Кондитерское изделие | F11: Кондитерское изделие | G11: Оладьи
A13: Обед | B13: Обед | C13: Обед | D13: Обед | E13: Обед | F13: Обед | G13: Обед
A14: Салат из моркови с яблоком | B14: Салат из огурцов и помидор | C14: Салат из капусты | D14: Салат из свеклы с черносливом | E14: Салат из помидор с репчатым луком | F14: Салат из моркови с яблоком | G14: Салат из огурцов и помидор
A15: Суп гороховый на мкб | B15: Борщ на мкб со сметаной | C15: Суп с вермишелью на курином бульоне | D15: Рассольник на мкб со сметаной | E15: Щи на мкб со сметаной | F15: Суп с клецками на курином бульоне | G15: Суп картофельный с гречневой крупой
A16: Макароны отварные | B16: Рис отварной | C16: Картофельное пюре | D16: Макароны отварные | E16: Картофель тушеный | F16: Гречка отварная | G16: Рагу из птицы
A17: Котлета куриная | B17: Рыба припущенная с овощами | C17: Котлета из говядины | D17: Гуляш из куриных грудок | E17: Биточки рыбные | F17: Гуляш из говядины | G17: Хлеб ржаной
A18: Соус | B18: Хлеб ржаной | C18: Хлеб ржаной | D18: Хлеб ржаной | E18: Хлеб ржаной | F18: Хлеб ржаной | G18: Компот из сухофруктов
A19: Хлеб ржаной | B19: Кисель | C19: Компот из свежих фруктов | D19: Компот из сухофруктов | E19: Кисель | F19: Компот из свежих фруктов
A20: Компот из сухофруктов
A23: День 8 | B23: День 9 | C23: День 10 | D23: День 11 | E23: День 12 | F23: День 13 | G23: День 14
A24: Завтрак | B24: Завтрак | C24: Завтрак | D24: Завтрак | E24: Завтрак | F24: Завтрак | G24: Завтрак
A25: Каша геркулесовая молочная | B25: Каша ячневая молочная | C25: Каша манная молочная | D25: Каша дружба молочная | E25: Каша геркулесовая молочная | F25: Каша гречневая молочная | G25: Каша дружба молочная
A26: Яйцо отварное | B26: Бутерброд с маслом и сыром | C26: Сырники из творога | D26: Омлет | E26: Бутерброд с маслом и сыром | F26: Яйцо отварное | G26: Омлет
A27: Бутерброд с маслом | B27: Какао с молоком | C27: Бутерброд с сыром | D27: Бутерброд с маслом | E27: Какао с молоком | F27: Бутерброд с сыром | G27: Бутерброд с маслом
A28: Чай с лимоном | B28: Фрукт | C28: Чай с сахаром | D28: Чай с урюком | E28: Фрукт | F28: Чай с лимоном | G28: Чай с урюком
A29: Фрукт | C29: Фрукт | D29: Фрукт | F29: Фрукт | G29: Фрукт
A31: 2-ой завтрак | B31: 2-ой завтрак | C31: 2-ой завтрак | D31: 2-ой завтрак | E31: 2-ой завтрак | F31: 2-ой завтрак | G31: 2-ой завтрак
A32: Сок | B32: Сок | C32: Сок | D32: Сок | E32: Сок | F32: Сок | G32: Сок
A33: Кондитерское изделие | B33: Кондитерское изделие | C33: Слойка с сахаром | D33: Кондитерское изделие | E33: Кондитерское изделие | F33: Оладьи | G33: Кондитерское изделие
A35: Обед | B35: Обед | C35: Обед | D35: Обед | E35: Обед | F35: Обед | G35: Обед
A36: Огурцы свежие | B36: Салат из свеклы с черносливом | C36: Салат из капусты | D36: Салат из помидор с репчатым луком | E36: Салат из моркови с яблоком | F36: Салат из свеклы с черносливом | G36: Салат из огурцов и помидор
A37: Рассольник на мкб со сметаной | B37: Щи на мкб со сметаной | C37: Суп картофельный на мкб с гречневой крупой | D37: Борщ на мкб со сметаной | E37: Суп с вермишелью на курином бульоне | F37: Рассольник на мкб со сметаной | G37: Щи на мкб со сметаной
A38: Макароны отварные | B38: Картофельное пюре | C38: Рис отварной | D38: Макароны отварные | E38: Пюре гороховое | F38: Жаркое из куриных грудок | G38: Картофельное пюре
A39: Тефтели из говядины | B39: Кнели куриные | C39: Рыба припущенная с овощами | D39: Котлета куриная с соусом | E39: Котлета из говядины | F39: Хлеб ржаной | G39: Биточки рыбные
A40: Соус | B40: Хлеб ржаной | C40: Хлеб ржаной | D40: Хлеб ржаной | E40: Хлеб ржаной | F40: Компот из сухофруктов | G40: Хлеб ржаной
A41: Хлеб ржаной | B41: Компот из свежих фруктов | C41: Компот из сухофруктов | D41: Кисель | E41: Компот из свежих фруктов | G41: Кисель
A42: Кисель
A45: Отличия от основного меню других районов
A47: Фрукты по 200 гр

Sheet Примерное меню
A1: Согласовано: | G1: Утверждаю:
A2: Директор МБОУ "Старо-Матаковская СОШ" | G2: Председатель СПОСПК "Эдем"
A3: Алькеевского муниципиального района РТ
A4: __________________ Тихонов С . Ю. | G4: ________________Турнина А. А.
A6: Примерное двухнедельное меню для организации сбалансированного питания детей в пришкольных
A7: оздоровительных лагерях с дневным прибыванием детей без сна в период каникул
A8: Возрастная категория: с 7 до 12 лет
A10: Прием пищи | B10: Наименование блюда | C10: Выход блюда, в гр. | D10: Пищевые вещества (г) | G10: Энергетическая ценность | H10: № рецептуры
D11: белки | E11: жиры | F11: углеводы | G11: ккал
A12: ДЕНЬ 1
A13: Завтрак | B13: Каша молочная ячневая со сливочным маслом | C13: 185/5/10 | D13: 6.88 | E13: 9.13 | F13: 18.98 | G13: 176 | H13: №173
B14: Яйцо отварное | C14: 40 | D14: 6 | E14: 5.5 | F14: 0.3 | G14: 78 | H14: №209
B15: Бутерброд с сыром | C15: 50/15 | D15: 6.32 | E15: 4.58 | F15: 23.57 | G15: 174.88 | H15: №3
B16: Какао с молоком | C16: 200 | D16: 3.97 | E16: 2.1 | F16: 20.178 | G16: 125.1 | H16: №382
B17: Фрукт | C17: 100 | D17: 0.4 | E17: 0.4 | F17: 9.8 | G17: 52 | H17: №338
B18: Итого за завтрак | D18: =D17+D16+D15+D14+D13 -> 23.57 | E18: =E17+E16+E15+E14+E13 -> 21.71 | F18: 72.828 | G18: 605.98
A19: 2-ой завтрак | B19: Сок | C19: 200 | D19: 0 | E19: 0 | F19: 38 | G19: 76.8 | H19: №389
B20: Оладьи | C20: 100 | D20: 9.48 | E20: 7.49 | F20: 31.85 | G20: 264.81 | H20: №406
B21: Итого за 2-ой завтрак | D21: =D20+D19 -> 9.48 | E21: =E20+E19 -> 7.49 | F21: 69.85 | G21: 341.61
A22: Обед | B22: Салат из моркови с яблоком | C22: 60 | D22: 0.59 | E22: 3.78 | F22: 5.19 | G22: 55.85 | H22: №59
B23: Суп картофельный с бобовыми (гороховый) на мкб | C23: 235/15 | D23: 3.77 | E23: 6.25 | F23: 14.94 | G23: 148.97 | H23: №102
B24: Макароны отварные со сливочным маслом | C24: 150 | D24: 5.47 | E24: 6.37 | F24: 34.34 | G24: 204 | H24: №203
B25: Котлета из птицы | C25: 100 | D25: 10.5 | E25: 7.11 | F25: 9.78 | G25: 202 | H25: №294
B26: Соус томатный с овощами | C26: 30 | D26: 0.3 | E26: 1.47 | F26: 1.95 | G26: 21.6 | H26: №333
B27: Хлеб ржаной | C27: 70 | D27: 4.74 | E27: 1.75 | F27: 26.12 | G27: 136.05
B28: Компот из сухофруктов | C28: 200 | D28: 0.54 | E28: 0 | F28: 12.59 | G28: 50.63 | H28: №348
B29: Итого за обед | D29: =D28+D27+D26+D25+D24+D23+D22 -> 25.91 | E29: =E28+E27+E26+E25+E24+E23+E22 -> 26.73 | F29: 104.91 | G29: 819.1
A30: Итого за день: | D30: =D29+D21+D18 -> 58.96 | E30: =E29+E21+E18 -> 55.93 | F30: =F29+F21+F18 -> 247.588 | G30: =G29+G21+G18 -> 1766.69
A31: ДЕНЬ 2
A32: Завтрак | B32: Каша геркулесовая молочная со сливочным маслом | C32: 185/5/10 | D32: 6.68 | E32: 9.55 | F32: 15.16 | G32: 168.98 | H32: №173
B33: Запеканка творожная | C33: 65 | D33: 13.12 | E33: 3.55 | F33: 11.29 | G33: 144.02 | H33: №223
B34: Бутерброд с маслом | C34: 50/15 | D34: 5.82 | E34: 12.75 | F34: 24.76 | G34: 230 | H34: №1
B35: Чай с сахаром | C35: 190/10 | D35: 0.021 | E35: 0.005 | F35: 9.985 | G35: 40.1 | H35: №376
B36: Фрукт | C36: 100 | D36: 0.4 | E36: 0.4 | F36: 9.8 | G36: 52 | H36: №338
B37: Итого за завтрак | D37: =D36+D35+D34+D33+D32 -> 26.041 | E37: =E36+E35+E34+E33+E32 -> 26.255 | F37: 70.995 | G37: 635.1
A38: 2-ой завтрак | B38: Сок | C38: 200 | D38: 0 | E38: 0 | F38: 38 | G38: 76.8 | H38: №389
B39: Кондитерское изделие | C39: 50 | D39: 4.75 | E39: 7.9 | F39: 17.05 | G39: 208.5
B40: Итого за 2-ой завтрак | D40: =D39+D38 -> 4.75 | E40: =E39+E38 -> 7.9 | F40: 55.05 | G40: 285.3
A41: Обед | B41: Салат из свежих овощей | C41: 60 | D41: 0.54 | E41: 3.66 | F41: 4.65 | G41: 52.59 | H41: №24
B42: Борщ с капустой и картофелем на мкб со сметаной | C42: 225/15/10 | D42: 8.07 | E42: 7.89 | F42: 20.64 | G42: 180.77 | H42: №82
B43: Рис отварной | C43: 150 | D43: 3.834 | E43: 5.42 | F43: 31.6 | G43: 210 | H43: №304
B44: Рыба припущенная с овощами | C44: 80/40 | D44: 7.52 | E44: 5.63 | F44: 10.21 | G44: 139.2 | H44: №229
B45: Хлеб ржаной | C45: 70 | D45: 4.74 | E45: 1.75 | F45: 26.12 | G45: 136.05
B46: Кисель | C46: 200 | D46: 0 | E46: 0 | F46: 30.95 | G46: 98.1 | H46: №359
B47: Итого за обед | D47: =D46+D45+D44+D43+D42+D41+D45 -> 29.444 | E47: =E46+E45+E44+E43+E42+E41 -> 24.35 | F47: 124.17 | G47: 816.71
A48: Итого за день: | D48: =D47+D40+D37 -> 60.235 | E48: =E47+E40+E37 -> 58.505 | F48: =F47+F40+F37 -> 250.215 | G48: =G47+G40+G37 -> 1737.11
A49: ДЕНЬ 3
A50: Завтрак | B50: Каша молочная гречневая со сливочным маслом | C50: 185/5/10 | D50: 6.67 | E50: 9.49 | F50: 15.15 | G50: 169.59 | H50: №173
B51: Омлет натуральный | C51: 80 | D51: 5.22 | E51: 5.51 | F51: 4.7 | G51: 103.92 | H51: №120
B52: Бутерброд с маслом и сыром | C52: 50/10/15 | D52: 7.7 | E52: 12.6 | F52: 25.24 | G52: 247.33 | H52: №2
B53: Чай с сахаром и урюком | C53: 180/10/7 | D53: 0.2 | E53: 1.5 | F53: 10.71 | G53: 45.4 | H53: №377
B54: Фрукт | C54: 100 | D54: 0.4 | E54: 0.4 | F54: 9.8 | G54: 52 | H54: №338
B55: Итого за завтрак | D55: =D54+D53+D52+D51+D50 -> 20.19 | E55: =E54+E53+E52+E51+E50 -> 29.5 | F55: 65.6 | G55: 618.24
A56: 2-ой завтрак | B56: Сок | C56: 200 | D56: 0 | E56: 0 | F56: 38 | G56: 76.8 | H56: №389
B57: Кондитерское изделие | C57: 50 | D57: 4.75 | E57: 7.9 | F57: 17.05 | G57: 208.5
B58: Итого за 2-ой завтрак | D58: =D57+D56 -> 4.75 | E58: =E57+E56 -> 7.9 | F58: 55.05 | G58: 285.3
A59: Обед | B59: Салат из белокочанной капусты | C59: 60 | D59: 0.93 | E59: 3.05 | F59: 5.64 | G59: 54 | H59: №45
B60: Суп с макаронными изделиями на курином бульоне со сметаной | C60: 225/15/10 | D60: 8.04 | E60: 6.1 | F60: 24.75 | G60: 187.5 | H60: №112
B61: Картофельное пюре | C61: 150 | D61: 3.09 | E61: 4.657 | F61: 22.03 | G61: 146 | H61: №312
B62: Котлета из говядины | C62: 100 | D62: 10.16 | E62: 13.92 | F62: 13.52 | G62: 236 | H62: №268
B63: Хлеб ржаной | C63: 70 | D63: 4.74 | E63: 1.75 | F63: 26.12 | G63: 136.05
B64: Компот из свежих плодов | C64: 200 | D64: 0.2 | E64: 0.005 | F64: 10.71 | G64: 45.4 | H64: №342
B65: Итого за обед | D65: =D64+D63+D63+D62+D61+D60+D59 -> 31.9 | E65: =E64+E63+E62+E61+E60 -> 26.432 | F65: =F64+F63+F63+F62+F61+F60+F59 -> 128.89 | G65: =G64+G63+G62+G61+G60+G59 -> 804.95
A66: Итого за день: | D66: =D65+D58+D55 -> 56.84 | E66: =E65+E58+E55 -> 63.832 | F66: =F65+F58+F55 -> 249.54 | G66: =G65+G58+G55 -> 1708.49
A67: ДЕНЬ 4
A68: Завтрак | B68: Каша молочная "Дружба" со сливочным маслом | C68: 185/5/10 | D68: 6.81 | E68: 10.21 | F68: 20.68 | G68: 189.5 | H68: №175
B69: Яйцо отварное | C69: 40 | D69: 6 | E69: 5.5 | F69: 0.3 | G69: 78 | H69: №209
B70: Бутерброд с сыром | C70: 50/15 | D70: 6.32 | E70: 4.58 | F70: 23.57 | G70: 174.88 | H70: №3
B71: Чай с сахаром и лимоном | C71: 180/10/7 | D71: 0.54 | E71: 0.05 | F71: 10.16 | G71: 40.8 | H71: №377
B72: Фрукт | C72: 100 | D72: 0.4 | E72: 0.4 | F72: 9.8 | G72: 52 | H72: №338
B73: Итого за завтрак | D73: =D72+D71+D70+D69+D68 -> 20.07 | E73: =E72+E71+E70+E69+E68 -> 20.74 | F73: 64.51 | G73: =G72+G72+G71+G70+G69+G68 -> 587.18
A74: 2-ой завтрак | B74: Сок | C74: 200 | D74: 0 | E74: 0 | F74: 38 | G74: 76.8 | H74: №389
B75: Булочка домашняя | C75: 60 | D75: 6.87 | E75: 6.53 | F75: 33.12 | G75: 238 | H75: №338
B76: Итого за 2-ой завтрак | D76: =D75+D74 -> 6.87 | E76: =E75+E74 -> 6.53 | F76: 71.12 | G76: 314.8
A77: Обед | B77: Салат из отварной свеклы с черносливом | C77: 60 | D77: 0.87 | E77: 4.05 | F77: 9.22 | G77: 53.82 | H77: №52
B78: Рассольник Ленинградский на мкб со сметаной | C78: 225/15/10 | D78: 8.7 | E78: 7.05 | F78: 14.65 | G78: 175.54 | H78: №96
B79: Макароны отварные со сливочным маслом | C79: 150 | D79: 5.47 | E79: 6.37 | F79: 34.34 | G79: 204 | H79: №203
B80: Гуляш из куриных грудок | C80: 50/50 | D80: 11.3 | E80: 10.56 | F80: 16.5 | G80: 220.11 | H80: №265
B81: Хлеб ржаной | C81: 70 | D81: 4.74 | E81: 1.75 | F81: 26.12 | G81: 136.05
B82: Компот из сухофруктов | C82: 200 | D82: 0.54 | E82: 0 | F82: 12.59 | G82: 50.63 | H82: №348
B83: Итого за обед | D83: =D82+D81+D80+D79+D78+D77 -> 31.62 | E83: =E82+E81+E80+E79+E78+E77 -> 29.78 | F83: 113.42 | G83: 840.15
A84: Итого за день: | D84: =D83+D76+D73 -> 58.56 | E84: =E83+E76+E73 -> 57.05 | F84: =F83+F76+F73 -> 249.05 | G84: =G83+G76+G73 -> 1742.13
A85: ДЕНЬ 5
A86: Завтрак | B86: Каша молочная манная со сливочным маслом | C86: 185/5/10 | D86: 6.37 | E86: 11.76 | F86: 22.75 | G86: 181.11 | H86: №181
B87: Сырники творожные | C87: 65 | D87: 9.42 | E87: 3.29 | F87: 10.01 | G87: 133.93 | H87: №219
B88: Бутерброд с маслом | C88: 50/15 | D88: 5.82 | E88: 12.75 | F88: 24.76 | G88: 230 | H88: №1
B89: Чай с сахаром | C89: 190/10 | D89: 0.021 | E89: 0.005 | F89: 9.985 | G89: 40.1 | H89: №376
B90: Фрукт | C90: 100 | D90: 0.4 | E90: 0.4 | F90: 9.8 | G90: 52 | H90: №338
B91: Итого за завтрак | D91: =D90+D89+D88+D87+D86 -> 22.031 | E91: =E90+E89+E88+E87+E86 -> 28.205 | F91: 77.305 | G91: 637.14
A92: 2-ой завтрак | B92: Сок | C92: 200 | D92: 0 | E92: 0 | F92: 38 | G92: 76.8 | H92: №389
B93: Кондитерское изделие | C93: 50 | D93: 4.75 | E93: 7.9 | F93: 17.05 | G93: 208.5
B94: Итого за 2-ой завтрак | D94: =D93+D92 -> 4.75 | E94: =E93+E92 -> 7.9 | F94: 55.05 | G94: 285.3
A95: Обед | B95: Салат из свежих помидор с репчатым луком | C95: 60 | D95: 0.66 | E95: 3.15 | F95: 3.15 | G95: 42.8 | H95: №71
B96: Щи с капустой и картофелем на мкб со сметаной | C96: 225/15/10 | D96: 7.5 | E96: 8.14 | F96: 14.8 | G96: 176.57 | H96: №88
B97: Картофель тушеный | C97: 150 | D97: 7.38 | E97: 4.6 | F97: 25.46 | G97: 212 | H97: №142
B98: Биточки рыбные из минтая | C98: 100 | D98: 12.45 | E98: 2.94 | F98: 13.8 | G98: 159.9 | H98: №234
B99: Хлеб ржаной | C99: 70 | D99: 4.74 | E99: 1.75 | F99: 26.12 | G99: 136.05
B100: Кисель | C100: 200 | D100: 0 | E100: 0 | F100: 30.95 | G100: 98.1 | H100: №359
B101: Итого за обед | D101: =D100+D99+D98+D97+D96+D95 -> 32.73 | E101: =E100+E99+E98+E97+E96+E95 -> 20.58 | F101: 114.28 | G101: 825.42
A102: Итого за день: | D102: =D101+D94+D91 -> 59.511 | E102: =E101+E94+E91 -> 56.685 | F102: =F101+F94+F91 -> 246.635 | G102: =G101+G94+G91 -> 1747.86
A103: ДЕНЬ 6
A104: Завтрак | B104: Каша молочная рисовая со сливочным маслом | C104: 185/5/10 | D104: 8.28 | E104: 9.49 | F104: 17 | G104: 182.32 | H104: №173
B105: Бутерброд с маслом и сыром | C105: 50/10/15 | D105: 7.7 | E105: 12.6 | F105: 25.24 | G105: 247.33 | H105: №2
B106: Какао с молоком | C106: 200 | D106: 3.97 | E106: 2.1 | F106: 20.178 | G106: 125.1 | H106: №382
B107: Фрукт | C107: 100 | D107: 0.4 | E107: 0.4 | F107: 9.8 | G107: 52 | H107: №338
B108: Итого за завтрак | D108: =D107+D106++D106+D105+D104 -> 24.32 | E108: =E107+E106+E105+E104 -> 24.59 | F108: 72.218 | G108: 606.75
A109: 2-ой завтрак | B109: Сок | C109: 200 | D109: 0 | E109: 0 | F109: 38 | G109: 76.8 | H109: №389
B110: Кондитерское изделие | C110: 50 | D110: 4.75 | E110: 7.9 | F110: 17.05 | G110: 208.5
B111: Итого за 2-ой завтрак | D111: =D110+D109 -> 4.75 | E111: =E110+E109 -> 7.9 | F111: 55.05 | G111: 285.3
A112: Обед | B112: Салат из моркови с яблоком | C112: 60 | D112: 0.59 | E112: 3.78 | F112: 5.19 | G112: 55.85 | H112: №59
B113: Суп картофельный с клёцками на курином бульоне со сметаной | C113: 225/15/10 | D113: 6.92 | E113: 5.15 | F113: 30.4 | G113: 191.78 | H113: №108
B114: Каша гречневая рассыпчатая со сливочным маслом | C114: 150 | D114: 6.86 | E114: 7.58 | F114: 33 | G114: 170 | H114: №171
B115: Гуляш из говядины | C115: 50/50 | D115: 9.75 | E115: 12.5 | F115: 7.985 | G115: 216 | H115: №260
B116: Хлеб ржаной | C116: 70 | D116: 4.74 | E116: 1.75 | F116: 26.12 | G116: 136.05
B117: Компот из свежих плодов | C117: 200 | D117: 0.2 | E117: 0.005 | F117: 10.71 | G117: 45.4 | H117: №342
B118: Итого за обед | D118: =D117+D116+D115+D114+D113+D112 -> 29.06 | E118: =E117+E116+E115+E114+E113+E112 -> 30.765 | F118: 113.405 | G118: 815.08
A119: Итого за день: | D119: =D118+D111+D108 -> 58.13 | E119: =E118+E111+E108 -> 63.255 | F119: =F118+F111+F108 -> 240.673 | G119: =G118+G111+G108 -> 1707.13
A120: ДЕНЬ 7
A121: Завтрак | B121: Каша молочная пшенная со сливочным маслом | C121: 185/5/10 | D121: 5.91 | E121: 9.55 | F121: 15.16 | G121: 168.97 | H121: №173
B122: Омлет натуральный | C122: 80 | D122: 5.22 | E122: 5.51 | F122: 4.7 | G122: 103.92 | H122: №120
B123: Бутерброд с сыром | C123: 50/15 | D123: 6.32 | E123: 4.58 | F123: 23.57 | G123: 174.88 | H123: №3
B124: Чай с сахаром и урюком | C124: 180/10/7 | D124: 0.2 | E124: 1.5 | F124: 10.71 | G124: 45.4 | H124: №377
B125: Фрукт | C125: 100 | D125: 0.4 | E125: 0.4 | F125: 9.8 | G125: 52 | H125: №338
B126: Итого за завтрак | D126: =D125+D125+D124+D123+D122+D121 -> 18.45 | E126: =E125+E125+E124+E123+E122+E121 -> 21.94 | F126: 73.74 | G126: 597.17
A127: 2-ой завтрак | B127: Сок | C127: 200 | D127: 0 | E127: 0 | F127: 38 | G127: 76.8 | H127: №389
B128: Оладьи | C128: 100 | D128: 9.48 | E128: 7.49 | F128: 31.85 | G128: 264.81 | H128: №406
B129: Итого за 2-ой завтрак | D129: =D128+D127 -> 9.48 | E129: =E128+E127 -> 7.49 | F129: 69.85 | G129: 341.61
A130: Обед | B130: Салат из свежих овощей | C130: 60 | D130: 0.54 | E130: 3.66 | F130: 4.65 | G130: 52.59 | H130: №24
B131: Суп картофельный с крупой (гречневый) на мкб | C131: 235/15 | D131: 7.56 | E131: 5.57 | F131: 21.94 | G131: 177.47 | H131: №101
B132: Рагу овощное с птицей | C132: 200 | D132: 13.4 | E132: 12.56 | F132: 22.16 | G132: 245.73 | H132: №289
B133: Хлеб ржаной | C133: 70 | D133: 4.74 | E133: 1.75 | F133: 26.12 | G133: 136.05
B134: Компот из сухофруктов | C134: 200 | D134: 0.54 | E134: 0 | F134: 12.59 | G134: 50.63 | H134: №348
B135: Итого за обед | D135: =D134+D133+D132+D131+D130 -> 26.78 | E135: =E134+E133+E132+E131+E130+E130 -> 27.2 | F135: =F134+F134+F133+F132+F131+F130 -> 100.05 | G135: =G134+G133+G133+G132+G131+G130 -> 798.52
A136: Итого за день: | D136: =D135+D129+D126 -> 54.71 | E136: =E135+E129+E126 -> 56.63 | F136: =F135+F129+F126 -> 243.64 | G136: =G135+G129+G126 -> 1737.3
A137: ДЕНЬ 8
A138: Завтрак | B138: Каша геркулесовая молочная со сливочным маслом | C138: 185/5/10 | D138: 6.68 | E138: 9.55 | F138: 15.16 | G138: 168.98 | H138: №173
B139: Яйцо отварное | C139: 40 | D139: 6 | E139: 5.5 | F139: 0.3 | G139: 78 | H139: №209
B140: Бутерброд с маслом | C140: 50/15 | D140: 5.82 | E140: 12.75 | F140: 24.76 | G140: 230 | H140: №1
B141: Чай с сахаром и лимоном | C141: 180/10/7 | D141: 0.54 | E141: 0.05 | F141: 10.16 | G141: 40.8 | H141: №377
B142: Фрукт | C142: 100 | D142: 0.4 | E142: 0.4 | F142: 9.8 | G142: 52 | H142: №338
B143: Итого за завтрак | D143: =D142+D141+D140+D139+D139+D138 -> 25.44 | E143: =E142+E141+E140+E139+E138 -> 28.25 | F143: 60.18 | G143: =G142+G141+G140+G139++G139+G138 -> 647.78
A144: 2-ой завтрак | B144: Сок | C144: 200 | D144: 0 | E144: 0 | F144: 38 | G144: 76.8 | H144: №389
B145: Кондитерское изделие | C145: 50 | D145: 4.75 | E145: 7.9 | F145: 17.05 | G145: 208.5 | H145: №338
B146: Итого за 2-ой завтрак | D146: =D145+D144 -> 4.75 | E146: =E145+E144 -> 7.9 | F146: 55.05 | G146: 285.3
A147: Обед | B147: Огурцы свежие | C147: 60 | D147: 0.45 | E147: 0.07 | F147: 1.5 | G147: 8.4 | H147: №71
B148: Рассольник Ленинградский на мкб со сметаной | C148: 225/15/10 | D148: 8.7 | E148: 7.05 | F148: 14.65 | G148: 175.54 | H148: №96
B149: Макароны отварные со сливочным маслом | C149: 150 | D149: 5.47 | E149: 6.37 | F149: 34.34 | G149: 204 | H149: №203
B150: Тефтели мясные | C150: 100 | D150: 9.99 | E150: 13.4 | F150: 24.4 | G150: 204 | H150: №279
B151: Соус томатный с овощами | C151: 30 | D151: 0.3 | E151: 1.47 | F151: 1.95 | G151: 21.6 | H151: №333
B152: Хлеб ржаной | C152: 70 | D152: 4.74 | E152: 1.75 | F152: 26.12 | G152: 136.05
B153: Кисель | C153: 200 | D153: 0 | E153: 0 | F153: 30.95 | G153: 98.1 | H153: №359
B154: Итого за обед | D154: =D153+D152+D151+D150+D149+D148+D147 -> 29.65 | E154: =E153+E152+E151+E150+E148+E147 -> 23.74 | F154: =F153+F152+F151+F150+F149+F148+F147 -> 133.91 | G154: 847.69
A155: Итого за день: | D155: =D154+D146+D143 -> 59.84 | E155: =E154+E146+E143 -> 59.89 | F155: =F154+F146+F143 -> 249.14 | G155: =G154+G146+G143 -> 1780.77
A156: ДЕНЬ 9
A157: Завтрак | B157: Каша молочная ячневая со сливочным маслом | C157: 185/5/10 | D157: 6.88 | E157: 9.13 | F157: 18.98 | G157: 176 | H157: №173
B158: Бутерброд с маслом и сыром | C158: 50/10/15 | D158: 7.7 | E158: 12.6 | F158: 25.24 | G158: 247.33 | H158: №2
B159: Какао с молоком | C159: 200 | D159: 3.97 | E159: 2.1 | F159: 20.178 | G159: 125.1 | H159: №382
B160: Фрукт | C160: 100 | D160: 0.4 | E160: 0.4 | F160: 9.8 | G160: 52 | H160: №338
B161: Итого за завтрак | D161: =D160+D159+D158+D157 -> 18.95 | E161: =E160+E159+E158+E157 -> 24.23 | F161: 74.198 | G161: 600.43
A162: 2-ой завтрак | B162: Сок | C162: 200 | D162: 0 | E162: 0 | F162: 38 | G162: 76.8 | H162: №389
B163: Кондитерское изделие | C163: 50 | D163: 4.75 | E163: 7.9 | F163: 17.05 | G163: 208.5
B164: Итого за 2-ой завтрак | D164: =D163+D162 -> 4.75 | E164: =E163+E162 -> 7.9 | F164: 55.05 | G164: 285.3
A166: Обед | B166: Салат из отварной свеклы с черносливом | C166: 60 | D166: 0.87 | E166: 4.05 | F166: 9.22 | G166: 53.82 | H166: №52
B167: Щи с капустой и картофелем на мкб со сметаной | C167: 225/15/10 | D167: 7.5 | E167: 8.14 | F167: 14.8 | G167: 176.57 | H167: №88
B168: Картофельное пюре | C168: 150 | D168: 3.09 | E168: 4.657 | F168: 22.03 | G168: 146 | H168: №312
B169: Кнели куриные | C169: 100 | D169: 12.63 | E169: 10.6 | F169: 6.95 | G169: 228 | H169: №301
B170: Хлеб ржаной | C170: 70 | D170: 4.74 | E170: 1.75 | F170: 26.12 | G170: 136.05
B171: Компот из свежих плодов | C171: 200 | D171: 0.2 | E171: 0.005 | F171: 10.71 | G171: 45.4 | H171: №342
B172: Итого за обед | D172: =D171+D170+D170+D169+D168+D167+D166 -> 33.77 | E172: =E171+E171+E170+E169+E168+E167+E166 -> 29.207 | F172: =F171+F171+F170+F168+F168+F167+F166 -> 115.62 | G172: 831.24
A173: Итого за день: | D173: =D172+D164+D161 -> 57.47 | E173: =E172+E164+E161 -> 61.337 | F173: =F172+F164+F161 -> 244.868 | G173: =G172+G164+G161 -> 1716.97
A174: ДЕНЬ 10
A175: Завтрак | B175: Каша молочная манная со сливочным маслом | C175: 185/5/10 | D175: 6.37 | E175: 11.76 | F175: 22.75 | G175: 181.11 | H175: №181
B176: Сырники творожные | C176: 65 | D176: 9.42 | E176: 3.29 | F176: 10.01 | G176: 133.93 | H176: №219
B177: Бутерброд с сыром | C177: 50/15 | D177: 6.32 | E177: 4.58 | F177: 23.57 | G177: 174.88 | H177: №3
B178: Чай с сахаром | C178: 190/10 | D178: 0.021 | E178: 0.005 | F178: 9.985 | G178: 40.1 | H178: №376
B179: Фрукт | C179: 100 | D179: 0.4 | E179: 0.4 | F179: 9.8 | G179: 52 | H179: №338
B180: Итого за завтрак | D180: =D179+D178+D177+D176+D175 -> 22.531 | E180: =E179+E178+E177+E176+E175 -> 20.035 | F180: 76.115 | G180: 582.02
A181: 2-ой завтрак | B181: Сок | C181: 200 | D181: 0 | E181: 0 | F181: 38 | G181: 76.8 | H181: №389
B182: Слойка с сахаром | C182: 60 | D182: 9.63 | E182: 9.41 | F182: 30.18 | G182: 255.34 | H182: №417
B183: Итого за 2-ой завтрак | D183: =D182+D181 -> 9.63 | E183: =E182+E181 -> 9.41 | F183: 68.18 | G183: 332.14
A184: Обед | B184: Салат из белокочанной капусты | C184: 60 | D184: 0.93 | E184: 3.05 | F184: 5.64 | G184: 54 | H184: №45
B185: Суп картофельный с крупой (гречневый) на мкб | C185: 235/15 | D185: 7.56 | E185: 5.57 | F185: 21.94 | G185: 177.47 | H185: №101
B186: Рис отварной | C186: 150 | D186: 3.834 | E186: 5.42 | F186: 31.6 | G186: 210 | H186: №304
B187: Рыба припущенная с овощами | C187: 80/40 | D187: 7.52 | E187: 5.63 | F187: 10.21 | G187: 139.2 | H187: №229
B188: Хлеб ржаной | C188: 70 | D188: 4.74 | E188: 1.75 | F188: 26.12 | G188: 136.05
B189: Компот из сухофруктов | C189: 200 | D189: 0.54 | E189: 0 | F189: 12.59 | G189: 50.63 | H189: №348
B190: Итого за обед | D190: =D189+D188+D187+D186+D185+D184 -> 25.124 | E190: =E189+E188+E187+E187+E186+E185+E184 -> 27.05 | F190: =F189+F188+F186+F185+F184 -> 97.89 | G190: =G189++G189+G188+G187+G186+G185+G184 -> 817.98
A191: Итого за день: | D191: =D190+D183+D180 -> 57.285 | E191: =E190+E183+E180 -> 56.495 | F191: =F190+F183+F180 -> 242.185 | G191: =G190+G183+G180 -> 1732.14
A192: ДЕНЬ 11
A193: Завтрак | B193: Каша молочная "Дружба" со сливочным маслом | C193: 185/5/10 | D193: 6.81 | E193: 10.21 | F193: 20.68 | G193: 189.5 | H193: №175
B194: Омлет натуральный | C194: 80 | D194: 5.22 | E194: 5.51 | F194: 4.7 | G194: 103.92 | H194: №120
B195: Бутерброд с маслом | C195: 50/15 | D195: 5.82 | E195: 12.75 | F195: 24.76 | G195: 230 | H195: №1
B196: Чай с сахаром и урюком | C196: 180/10/7 | D196: 0.2 | E196: 1.5 | F196: 10.71 | G196: 45.4 | H196: №377
B197: Фрукт | C197: 100 | D197: 0.4 | E197: 0.4 | F197: 9.8 | G197: 52 | H197: №338
B198: Итого за завтрак | D198: =D197+D196+D195+D194+D194+D193 -> 23.67 | E198: =E197+E196+E195+E194+E193 -> 30.37 | F198: 70.65 | G198: 620.82
A199: 2-ой завтрак | B199: Сок | C199: 200 | D199: 0 | E199: 0 | F199: 38 | G199: 76.8 | H199: №389
B200: Кондитерское изделие | C200: 50 | D200: 4.75 | E200: 7.9 | F200: 17.05 | G200: 208.5 | H200: №338
B201: Итого за 2-ой завтрак | D201: =D200+D199 -> 4.75 | E201: =E200+E199 -> 7.9 | F201: 55.05 | G201: 285.3
A202: Обед | B202: Помидоры свежие | C202: 60 | D202: 0.67 | E202: 0.15 | F202: 3.15 | G202: 14.4 | H202: №71
B203: Борщ с капустой и картофелем на мкб со сметаной | C203: 225/15/10 | D203: 8.07 | E203: 7.89 | F203: 20.64 | G203: 180.77 | H203: №82
... 59 more rows

Sheet Пищевая ценность
A1: СЛИЧИТЕЛЬНЫЙ ЛИСТ ПИЩЕВОЙ И ЭНЕРГЕТИЧЕСКИЙ ЦЕННОСТИ ПО ИТОГАМ ДНЯ
A3: День | B3: Белки | C3: жиры | D3: углеводы | E3: ккал
A4: ДЕНЬ 1 | B4: 58.96 | C4: 55.93 | D4: 247.588 | E4: 1766.69
A5: ДЕНЬ 2 | B5: 60.235 | C5: 58.505 | D5: 250.215 | E5: 1737.11
A6: ДЕНЬ 3 | B6: 56.84 | C6: 63.832 | D6: 249.54 | E6: 1708.49
A7: ДЕНЬ 4 | B7: 58.56 | C7: 57.05 | D7: 249.05 | E7: 1742.13
A8: ДЕНЬ 5 | B8: 59.511 | C8: 56.685 | D8: 246.635 | E8: 1747.86
A9: ДЕНЬ 6 | B9: 58.13 | C9: 63.255 | D9: 240.673 | E9: 1707.13
A10: ДЕНЬ 7 | B10: 54.71 | C10: 56.63 | D10: 243.64 | E10: 1737.3
A11: ДЕНЬ 8 | B11: 59.84 | C11: 59.89 | D11: 249.14 | E11: 1780.77
A12: ДЕНЬ 9 | B12: 57.47 | C12: 61.337 | D12: 244.868 | E12: 1716.97
A13: ДЕНЬ 10 | B13: 57.285 | C13: 56.495 | D13: 242.185 | E13: 1732.14
A14: ДЕНЬ 11 | B14: 58.17 | C14: 63.01 | D14: 252.63 | E14: 1763.04
A15: ДЕНЬ 12 | B15: 57.09 | C15: 62.175 | D15: 244.578 | E15: 1744.51
A16: ДЕНЬ 13 | B16: 57.1 | C16: 56.28 | D16: 237.13 | E16: 1774.18
A17: ДЕНЬ 14 | B17: 56.26 | C17: 57.667 | D17: 242.7 | E17: 1727.92
A18: Итого за 14 дней | B18: =B17+B16+B15+B14+B13+B12+B11+B10+B9+B8+B7+B6+B5+B4 -> 810.161 | C18: =C17+C16+C15+C14+C13+C12+C11+C10+C9+C8+C7+C6+C5+C4 -> 828.741 | D18: 3440.572 | E18: 24386.24
A19: Среднесуточные данные | B19: 57.86 | C19: 59.19 | D19: 245.75 | E19: 1741.87
A20: Норма СанПиН 2.3/2.4.3590-20 в сутки | B20: 77 | C20: 79 | D20: 335 | E20: 2350
A21: Норма не менее 70% (70-75%) | B21: 53,9-57,75 | C21: 55,3-59,25 | D21: 234,5-251,25 | E21: 1645-1762,5
A24: СУММАРНЫЕ ОБЪЁМЫ БЛЮД ПО ПРИЁМАМ ПИЩИ
A26: Наименование | B26: Завтрак | C26: 2-ой завтрак | D26: Обед
A27: День 1 | B27: 605 | C27: 300 | D27: 860
A28: День 2 | B28: 630 | C28: 250 | D28: 850
A29: День 3 | B29: 652 | C29: 250 | D29: 830
A30: День 4 | B30: 602 | C30: 260 | D30: 830
A31: День 5 | B31: 625 | C31: 250 | D31: 830
A32: День 6 | B32: 575 | C32: 250 | D32: 830
A33: День 7 | B33: 642 | C33: 300 | D33: 780
A34: День 8 | B34: 602 | C34: 250 | D34: 860
A35: День 9 | B35: 575 | C35: 250 | D35: 830
A36: День 10 | B36: 630 | C36: 260 | D36: 850
A37: День 11 | B37: 642 | C37: 250 | D37: 860
A38: День 12 | B38: 575 | C38: 250 | D38: 830
A39: День 13 | B39: 602 | C39: 300 | D39: 780
A40: День 14 | B40: 643 | C40: 250 | D40: 830
A41: Нормы СанПиН не менее | B41: 500 | C41: 200 | D41: 700
A44: РАСПРЕДЕЛЕНИЕ КАЛОРИЙНОСТИ ПО ПРИЁМАМ ПИЩИ
A46: Наименование | C46: Завтрак | D46: 2-ой завтрак | E46: Обед | F46: Итого
A47: День 1 | B47: Ккал | C47: 605.98 | D47: 341.61 | E47: 819.1 | F47: =C47+D47+E47 -> 1766.69
B48: % от сут нормы | C48: 25.78% | D48: 14.53% | E48: 34.85% | F48: =C48+D48+E48 -> 75.16%
A49: День 2 | B49: Ккал | C49: 635.1 | D49: 285.3 | E49: 816.71 | F49: 1737.11
B50: % от сут нормы | C50: 27.00% | D50: 12.14% | E50: 34.75% | F50: 73.89%
A51: День 3 | B51: Ккал | C51: 618.24 | D51: 285.3 | E51: 804.95 | F51: 1708.49
B52: % от сут нормы | C52: 26.30% | D52: 12.14% | E52: 34.25% | F52: 72.69%
A53: День 4 | B53: Ккал | C53: 587.18 | D53: 314.8 | E53: 840.15 | F53: 1742.13
B54: % от сут нормы | C54: 25.00% | D54: 13.40% | E54: 35.75% | F54: 74.15%
A55: День 5 | B55: Ккал | C55: 637.14 | D55: 285.3 | E55: 825.42 | F55: =C55+D55+E55 -> 1747.86
B56: % от сут нормы | C56: 27.11% | D56: 12.14% | E56: 35.12% | F56: 74.37%
A57: День 6 | B57: Ккал | C57: 606.75 | D57: 285.3 | E57: 815.08 | F57: 1707.13
B58: % от сут нормы | C58: 25.81% | D58: 12.14% | E58: 34.68% | F58: 72.63%
A59: День 7 | B59: Ккал | C59: 597.17 | D59: 341.61 | E59: 798.52 | F59: =C59+D59+E59 -> 1737.3
B60: % от сут нормы | C60: 25.74% | D60: 14.53% | E60: 34.00% | F60: 74.27%
A61: День 8 | B61: Ккал | C61: 647.78 | D61: 285.3 | E61: 847.69 | F61: 1780.77
B62: % от сут нормы | C62: 27.56% | D62: 12.14% | E62: 36.00% | F62: 75.70%
A63: День 9 | B63: Ккал | C63: 600.43 | D63: 285.3 | E63: 831.24 | F63: 1716.97
B64: % от сут нормы | C64: 25.55% | D64: 12.14% | E64: 35.37% | F64: 73.06%
A65: День 10 | B65: Ккал | C65: 582.02 | D65: 332.14 | E65: 817.98 | F65: 1732.14
B66: % от сут нормы | C66: 24.76% | D66: 14.13% | E66: 34.80% | F66: 73.69%
A67: День 11 | B67: Ккал | C67: 620.82 | D67: 285.3 | E67: 856.92 | F67: 1763.04
B68: % от сут нормы | C68: 26.40% | D68: 12.14% | E68: 36.46% | F68: 75.00%
A69: День 12 | B69: Ккал | C69: 593.41 | D69: 285.3 | E69: 865.8 | F69: 1744.51
B70: % от сут нормы | C70: 25.25% | D70: 12.14% | E70: 36.84% | F70: 74.23%
A71: День 13 | B71: Ккал | C71: 593.27 | D71: 341.61 | E71: 839.3 | F71: 1774.18
B72: % от сут нормы | C72: 25.24% | D72: 14.53% | E72: 35.70% | F72: 75.47%
A73: День 14 | B73: Ккал | C73: 620.82 | D73: 285.3 | E73: 821.8 | F73: 1727.92
B74: % от сут нормы | C74: 26.40% | D74: 12.14% | E74: 34.98% | F74: 73.52%
A75: Рекомендуемые нормы СанПиН | C75: 25.00% | E75: 35.00%
